bitfinex-derivatives/quotes_BNBF0:USTF0_20250305
["timestamp","ask_amount","ask_price","bid_price","bid_amount"]
[1741170073363,1.50929965,599.89,599.28,0.27912606]
[1741170073564,1.50929965,599.89,599.29,0.27912606]
[1741170073757,1.50929965,599.89,599.27,0.27912606]
[1741170073962,1.50929965,599.89,599.26,0.264]
[1741170073963,1.50929965,599.89,599.28,0.27912606]
[1741170074262,1.50929965,599.89,599.29,0.27912606]
[1741170074463,1.50929965,599.89,599.26,0.264]
[1741170074664,1.50929965,599.89,599.27,0.27912231]
[1741170076365,1.50929965,599.89,599.28,0.27914629]
[1741170076566,1.50929965,599.89,599.27,0.27914629]
[1741170076869,0.97844815,600.65,599.28,0.27914629]
[1741170076870,1.18367803,600.18,599.28,0.27914629]
[1741170077065,1.18367803,600.18,599.27,0.27914629]
[1741170077266,1.18367803,600.18,599.28,0.27914629]
[1741170077470,2.588263,600.17,599.27,0.27914629]
[1741170077671,3.77194103,600.16,599.28,0.27914629]
[1741170077869,2.588263,600.15,599.27,0.27914629]
[1741170078169,1.18367803,600.14,599.28,0.2791644]
[1741170078369,2.5890904,600.13,599.27,0.2791644]
[1741170078570,1.18367803,600.14,599.28,0.2791644]
[1741170078770,0.94316411,600.13,599.27,0.2791644]
[1741170079071,0.943153,600.12,599.27,0.2791644]
[1741170079276,1.18367803,600.13,599.26,0.264]
[1741170079569,1.64667656,600.12,599.27,0.27918128]
[1741170079771,1.18367803,600.12,599.27,0.27918128]
[1741170080379,1.18367803,600.11,599.27,0.27918128]
[1741170081070,1.18367803,600.1,599.27,0.27918128]
[1741170081466,6.54037701,600.44,599.27,0.27918128]
[1741170081666,0.29011605,600.18,599.27,0.27918128]
[1741170081867,2.59210791,600.17,599.27,0.27918128]
[1741170082070,2.59210791,600.16,599.26,0.55411605]
[1741170082266,2.59210791,600.15,599.27,0.27918454]
[1741170082466,3.77812136,600.14,599.27,0.27918454]
[1741170082673,2.59210791,600.13,599.27,0.27918454]
[1741170082872,2.59207735,600.12,599.27,0.27918454]
[1741170083066,2.59207735,600.11,599.27,0.27918454]
[1741170083373,2.59207735,600.1,599.27,0.27918454]
[1741170083571,2.59207735,600.09,599.27,0.27918454]
[1741170083874,3.77793715,600.08,599.27,0.27918454]
[1741170084169,1.18601345,600.08,599.27,0.27918454]
[1741170084373,1.18601345,600.07,599.27,0.27918454]
[1741170085374,2.13060531,600.06,599.27,0.27918454]
[1741170085575,2.59287369,600.05,599.26,0.55413902]
[1741170085769,2.59287369,600.04,599.27,0.27922717]
[1741170085975,2.59287369,600.03,599.27,0.27922717]
[1741170086174,2.59287369,600.02,599.26,0.264]
[1741170086371,2.59287369,600.01,599.27,0.27925183]
[1741170086579,2.59287369,600.0,599.27,0.27925183]
[1741170086879,2.59287369,599.99,599.27,0.27925183]
[1741170087072,2.59287369,599.98,599.26,0.264]
[1741170087273,2.59285388,599.97,599.26,0.264]
[1741170087577,2.59285388,599.96,599.27,0.27929499]
[1741170087876,2.59285388,599.95,599.27,0.27929499]
[1741170088075,2.59285388,599.94,599.27,0.27929499]
[1741170088277,3.77886733,599.93,599.27,0.27929499]
[1741170088469,0.94458307,599.92,599.27,0.27929499]
[1741170088670,1.18601345,599.92,599.27,0.27929499]
[1741170089172,0.2902225,599.96,599.28,0.27928133]
[1741170089370,0.2902225,599.96,599.26,0.264]
[1741170089371,2.5934468,599.95,599.27,0.27928133]
[1741170089677,0.94477084,599.94,599.28,0.27928133]
[1741170089879,1.18657215,599.93,599.27,0.27928133]
[1741170090178,1.18657215,599.93,599.28,0.27928133]
[1741170090381,1.18657215,599.93,599.29,0.27928133]
[1741170090576,4.64897001,600.12,599.27,0.27928133]
[1741170090577,1.18657215,599.92,599.27,0.27928133]
[1741170090773,1.18657215,599.92,599.28,0.27928133]
[1741170090971,1.18657215,599.92,599.29,0.27928133]
[1741170091173,1.18657215,599.91,599.27,0.27928133]
[1741170091472,1.18657215,599.91,599.28,0.27928133]
[1741170091678,1.18657215,599.91,599.27,0.27928133]
[1741170091874,1.18657215,599.91,599.28,0.27928133]
[1741170092173,3.78057884,599.9,599.29,0.27928133]
[1741170092373,0.94511665,599.89,599.27,0.27928133]
[1741170092573,1.18657215,599.89,599.26,0.264]
[1741170092779,1.18657215,599.89,599.27,0.27929939]
[1741170093175,1.18657215,599.88,599.27,0.27929939]
[1741170093575,1.18657215,599.87,599.28,0.27929939]
[1741170093774,1.18657215,599.87,599.09,0.29023219]
[1741170093977,0.29023219,599.89,599.09,0.29023219]
[1741170093978,0.29023219,599.89,599.1,0.27929939]
[1741170094279,0.94597719,599.88,599.1,0.27929939]
[1741170094476,0.29023219,599.89,599.1,0.27929939]
[1741170094680,0.94616801,599.88,599.1,0.27929939]
[1741170094877,0.94616801,599.87,599.1,0.27929939]
[1741170095076,0.94622808,599.86,599.1,0.27929939]
[1741170095273,0.29023219,599.89,599.1,0.27929939]
[1741170095475,1.18865755,599.85,599.1,0.27929939]
[1741170095675,1.18865755,599.85,599.13,1.22818455]
[1741170095877,1.18865755,599.85,599.14,0.27929939]
[1741170096274,2.59732896,599.84,599.14,0.27929939]
[1741170096478,1.18865755,599.84,599.15,0.264]
[1741170096779,1.18865755,599.84,599.16,0.27929939]
[1741170096978,0.94637375,599.83,599.16,0.27929939]
[1741170097181,1.18865755,599.83,599.16,0.27929939]
[1741170097775,1.18865755,599.82,599.15,0.264]
[1741170097976,1.18865755,599.82,599.16,0.27929141]
[1741170098583,1.18865755,599.81,599.16,0.27929141]
[1741170098982,0.2902334,599.89,599.16,0.27929141]
[1741170099180,4.11587734,599.88,599.16,0.27929141]
[1741170099379,2.59988707,599.87,599.16,0.27929141]
[1741170099576,2.59988707,599.86,599.16,0.27929141]
[1741170099775,3.78999957,599.85,599.16,0.27929141]
[1741170099979,2.59988707,599.84,599.16,0.27929141]
[1741170100186,2.59988707,599.83,599.16,0.27929141]
[1741170100382,3.78999957,599.82,599.16,0.27929141]
[1741170100583,1.1901125,599.82,599.16,0.27929141]
[1741170101183,1.1901125,599.81,599.16,0.27929141]
[1741170101384,1.1901125,599.81,599.17,0.2792973]
[1741170101578,1.1901125,599.81,599.16,0.2792973]
[1741170101781,0.29022855,599.89,599.17,0.2792973]
[1741170101982,6.76133525,599.88,599.16,0.2792973]
[1741170102181,0.94735113,599.87,599.17,0.2792973]
[1741170102481,0.94735113,599.86,599.18,0.2792973]
[1741170102678,2.13725724,599.85,599.16,0.2792973]
[1741170102881,1.18990611,599.85,599.17,0.2792973]
[1741170103078,1.18990611,599.85,599.16,0.2792973]
[1741170103282,0.2902334,599.89,599.16,0.2792973]
[1741170105592,4.66023828,600.17,599.16,0.2792973]
[1741170105791,0.2901862,599.93,599.16,0.2792973]
[1741170106093,7.59343562,600.16,599.16,0.2792973]
[1741170106094,4.66023828,600.15,599.16,0.2792973]
[1741170106289,7.59310574,600.14,599.16,0.2792973]
[1741170106490,1.18972014,599.92,599.16,0.2792973]
[1741170107189,2.59884017,599.91,599.16,0.2792973]
[1741170107392,3.78794786,599.9,599.16,0.2792973]
[1741170107590,2.59884017,599.89,599.16,0.2792973]
[1741170107786,2.59884017,599.88,599.16,0.2792973]
[1741170107988,2.59884017,599.87,599.16,0.2792973]
[1741170108193,2.59884017,599.86,599.16,0.2792973]
[1741170108387,2.59866735,599.85,599.16,0.2792973]
[1741170108592,1.47935198,599.86,599.16,0.2792973]
[1741170108793,0.94672952,599.85,599.16,0.2792973]
[1741170109093,1.18910769,599.85,599.16,0.2792973]
[1741170109695,0.29024429,599.86,599.16,0.2792973]
[1741170109895,2.46143382,599.85,599.16,0.2792973]
[1741170110196,0.94666659,599.84,599.16,0.2792973]
[1741170110397,2.5984357,599.83,599.16,0.2792973]
[1741170110595,2.5984357,599.82,599.16,0.2792973]
[1741170110793,2.5984357,599.81,599.16,0.2792973]
[1741170110997,2.5984357,599.8,599.16,0.2792973]
[1741170111192,2.5984357,599.79,599.16,0.2792973]
[1741170111396,2.5984357,599.78,599.16,0.2792973]
[1741170111699,1.18897198,599.78,599.16,0.2792973]
[1741170112097,4.65656454,600.08,599.16,0.2792973]
[1741170112293,7.25474169,600.07,599.17,0.2792973]
[1741170112491,7.25474169,600.06,599.18,0.2792973]
[1741170112696,7.25474169,600.05,599.19,0.2792973]
[1741170112893,7.25474169,600.04,599.16,0.2792973]
[1741170113196,6.75455925,600.03,599.17,0.2792973]
[1741170113399,9.84554632,600.02,599.18,0.2792973]
[1741170113595,6.75455925,600.01,599.19,0.2792973]
[1741170113794,4.11270805,600.0,599.16,0.2792973]
[1741170113995,2.59817715,599.99,599.17,0.2792973]
[1741170114208,2.59817715,599.98,599.16,1.50748185]
[1741170114411,2.59817715,599.97,599.17,0.2792973]
[1741170114605,2.59817715,599.96,599.17,0.2792973]
[1741170114803,0.94649314,599.95,599.17,0.2792973]
[1741170115011,1.18897015,599.96,599.17,0.2792973]
[1741170115609,1.18897015,599.95,599.17,0.2792973]
[1741170116815,0.29018136,600.07,599.17,0.2792973]
[1741170116816,1.18897015,599.94,599.17,0.2792973]
[1741170117017,1.18897015,599.94,599.16,0.2792973]
[1741170117018,0.9470695,599.93,599.16,0.2792973]
[1741170117220,3.78870485,599.92,599.17,0.27926369]
[1741170117422,2.5997347,599.91,599.18,0.27926369]
[1741170117611,2.5997347,599.9,599.16,0.27926369]
[1741170117813,2.5997347,599.89,599.16,0.27926369]
[1741170118011,2.5997347,599.88,599.16,0.27926369]
[1741170118215,0.94688883,599.87,599.16,0.27926369]
[1741170118414,1.18897015,599.88,599.16,0.27926369]
[1741170118612,2.5992959,599.87,599.31,1.22818455]
[1741170118816,1.18897015,599.88,599.32,0.27926369]
[1741170119015,1.18897015,599.86,599.32,0.27926369]
[1741170119517,0.29021403,599.96,599.32,0.27926369]
[1741170119715,6.75895828,599.95,599.32,0.27926369]
[1741170119914,9.85181774,599.94,599.32,0.27926369]
[1741170120114,6.75895828,599.93,599.32,0.27926369]
[1741170120309,2.59959934,599.92,599.32,0.27926369]
[1741170120511,2.59959934,599.91,599.33,1.22818455]
[1741170120711,2.59959934,599.9,599.34,0.2792773]
[1741170120916,2.59959934,599.89,599.34,0.2792773]
[1741170121114,2.59959934,599.88,599.34,0.2792773]
[1741170121313,1.18956133,599.89,599.34,0.2792773]
[1741170121314,2.59959934,599.87,599.34,0.2792773]
[1741170121510,0.94701175,599.86,599.34,0.2792773]
[1741170121710,1.18956133,599.89,599.34,0.2792773]
[1741170121915,2.59932334,599.88,599.34,0.2792773]
[1741170122112,0.94691044,599.88,599.34,0.2792773]
[1741170122313,0.29018378,599.96,599.34,1.50746185]
[1741170122513,0.29018378,599.96,599.35,0.27929167]
[1741170122514,1.65198209,599.87,599.35,0.27929167]
[1741170122713,1.65198209,599.87,599.35,0.54329167]
[1741170122914,2.59865439,599.86,599.36,0.27929167]
[1741170123115,0.29018378,599.96,599.36,0.27929167]
[1741170123316,7.25601045,599.95,599.36,0.27929167]
[1741170123514,7.25601045,599.94,599.36,0.27929167]
[1741170123711,6.7558847,599.93,599.36,0.27929167]
[1741170123919,6.7558847,599.92,599.36,0.27929167]
[1741170124220,7.256059,599.91,599.35,0.264]
[1741170124420,7.256059,599.9,599.35,0.264]
[1741170124717,6.7558847,599.89,599.35,0.264]
[1741170124927,6.7558847,599.88,599.35,0.264]
[1741170125117,6.7558847,599.87,599.35,0.264]
[1741170125418,6.7558847,599.86,599.35,0.264]
[1741170125616,9.84733782,599.85,599.35,0.264]
[1741170125818,6.7558847,599.84,599.35,0.264]
[1741170126117,6.7558847,599.83,599.35,0.264]
[1741170126327,5.68987031,599.82,599.35,0.264]
[1741170126514,2.59841719,599.81,599.35,0.264]
[1741170126714,3.78743762,599.8,599.35,0.264]
[1741170126918,2.59841719,599.79,599.35,0.264]
[1741170127118,2.59841719,599.78,599.35,0.264]
[1741170127429,3.78743762,599.77,599.35,0.264]
[1741170127618,2.59841719,599.76,599.35,0.264]
[1741170127818,2.59841719,599.75,599.35,0.264]
[1741170128018,0.94658733,599.74,599.35,0.264]
[1741170128319,1.18902043,599.75,599.35,0.264]
[1741170128516,1.18902043,599.73,599.35,0.264]
[1741170128717,2.59960248,599.72,599.35,0.264]
[1741170128917,2.59960248,599.71,599.35,0.264]
[1741170129219,2.59960248,599.7,599.35,0.264]
[1741170129418,1.18902043,599.7,599.35,0.264]
[1741170129819,1.18902043,599.69,599.35,0.264]
[1741170130319,0.94758481,599.68,599.35,0.264]
[1741170130518,1.18902043,599.69,599.35,0.264]
[1741170131112,1.18902043,599.68,599.35,0.264]
[1741170131820,0.29031087,599.71,599.35,0.264]
[1741170132019,2.60120824,599.7,599.35,0.264]
[1741170132318,1.6535745,599.69,599.35,0.264]
[1741170132521,1.6535745,599.68,599.35,0.264]
[1741170132718,2.6013733,599.67,599.35,0.264]
[1741170132918,0.50024212,599.87,599.35,0.264]
[1741170133115,7.59825209,599.86,599.35,0.264]
[1741170133318,7.59825765,599.85,599.35,0.264]
[1741170133520,7.26484097,599.84,599.35,0.264]
[1741170133819,7.26484097,599.83,599.35,0.264]
[1741170134020,7.26484097,599.82,599.35,0.264]
[1741170134220,7.26484097,599.81,599.35,0.264]
[1741170134420,7.26484097,599.8,599.35,0.264]
[1741170134617,7.26484097,599.79,599.35,0.264]
[1741170134818,6.76459885,599.78,599.35,0.264]
[1741170135013,6.76459885,599.77,599.35,0.264]
[1741170135218,6.76459885,599.76,599.35,0.264]
[1741170135419,6.76459885,599.75,599.35,0.264]
[1741170135615,6.76459885,599.74,599.35,0.264]
[1741170135816,6.76459885,599.73,599.35,0.264]
[1741170136019,6.76459885,599.72,599.35,0.264]
[1741170136317,6.76459885,599.71,599.35,0.264]
[1741170136516,9.8606627,599.7,599.35,0.264]
[1741170136720,7.26488324,599.69,598.77,1.22818455]
[1741170136919,7.26488324,599.68,598.78,0.27941377]
[1741170137120,7.26488324,599.67,598.91,1.22818455]
[1741170137322,7.26488324,599.66,598.92,0.27941377]
[1741170137523,7.26488324,599.65,598.92,0.27941377]
[1741170137723,7.26488324,599.64,598.92,0.27941377]
[1741170137918,7.26488324,599.63,598.91,1.22818455]
[1741170138122,7.26488324,599.62,598.92,0.27944321]
[1741170138322,7.264972,599.61,598.92,0.27944321]
[1741170138625,7.5985277,599.6,598.92,0.27944321]
[1741170138825,7.264972,599.59,598.92,0.27944321]
[1741170139020,7.264972,599.58,598.92,0.27944321]
[1741170139219,7.264972,599.57,598.92,0.27944321]
[1741170139418,10.36103585,599.56,598.92,0.27944321]
[1741170139726,7.59855552,599.55,598.92,0.27944321]
[1741170139920,7.59856108,599.54,598.92,0.54344321]
[1741170140223,10.69463049,599.53,598.93,0.27944321]
[1741170140418,7.264972,599.52,598.93,0.27944321]
[1741170140622,7.264972,599.51,598.93,0.27944321]
[1741170140822,7.2607511,599.5,598.93,0.27944321]
[1741170141023,7.2607511,599.49,598.93,0.27944321]
[1741170141221,7.2607511,599.48,598.93,0.27944321]
[1741170141423,3.09606385,599.51,598.92,0.264]
[1741170141424,7.2607511,599.47,598.92,0.264]
[1741170141617,10.35681495,599.46,598.92,0.264]
[1741170141823,7.2607511,599.45,598.92,0.264]
[1741170142024,7.59439583,599.44,598.92,0.264]
[1741170142220,6.76037795,599.43,598.92,0.264]
[1741170142525,6.76037795,599.42,598.92,0.264]
[1741170142718,6.76037795,599.41,598.92,0.264]
[1741170142923,7.59463351,599.4,598.92,0.264]
[1741170143122,7.26096651,599.39,598.92,0.264]
[1741170143320,7.26096651,599.38,598.92,0.264]
[1741170143524,7.26096651,599.37,598.92,0.264]
[1741170143821,10.35703036,599.36,598.92,0.264]
[1741170144024,7.26096651,599.35,598.92,0.264]
[1741170144220,6.76037795,599.34,598.92,0.264]
[1741170144422,6.76037795,599.33,598.92,0.264]
[1741170144727,4.29601056,599.32,598.92,0.264]
[1741170144926,6.75160919,599.31,598.92,0.264]
[1741170145127,6.75160919,599.3,598.92,0.264]
[1741170145323,6.74252788,599.29,598.92,0.264]
[1741170145524,6.74248302,599.28,598.92,0.264]
[1741170145720,6.74248302,599.27,598.92,0.264]
[1741170146022,6.74248302,599.26,598.92,0.264]
[1741170146220,6.74248302,599.25,598.92,0.264]
[1741170146422,6.74248302,599.24,598.92,0.264]
[1741170146622,6.74248302,599.23,598.92,0.264]
[1741170146819,5.2313454,599.22,598.92,0.264]
[1741170147020,5.2313454,599.21,598.92,0.264]
[1741170147223,2.59677276,599.2,598.92,0.264]
[1741170147426,3.78756655,599.19,598.92,0.264]
[1741170147628,0.94194466,599.18,598.92,0.264]
[1741170147823,1.19079379,599.19,598.92,0.264]
[1741170148029,2.58525917,599.18,598.92,0.264]
[1741170148225,1.90527006,599.32,598.92,0.264]
[1741170148726,2.41468137,599.31,598.92,0.264]
[1741170148926,1.47320236,599.31,598.92,0.264]
[1741170149532,0.29058238,599.31,598.92,0.264]
[1741170150325,0.333667,599.4,598.92,0.264]
[1741170150526,0.94117741,599.39,598.92,0.264]
[1741170150730,0.333667,599.4,598.92,0.264]
[1741170151029,1.18223588,599.39,598.92,0.264]
[1741170151232,1.47279642,599.39,598.92,0.264]
[1741170151431,0.29056054,599.39,598.93,0.27954901]
[1741170151632,0.29056054,599.39,598.92,0.264]
[1741170151830,0.29056054,599.39,598.93,0.27954686]
[1741170152334,0.333667,599.4,598.93,0.27954686]
[1741170153833,0.29050354,599.39,598.92,0.264]
[1741170154131,0.29050354,599.39,598.93,0.27956815]
[1741170154332,0.94174123,599.38,598.92,0.264]
[1741170154532,0.29050354,599.39,598.92,0.264]
[1741170154931,0.94176718,599.38,598.92,0.264]
[1741170155127,2.44894715,599.37,598.92,0.264]
[1741170155332,6.72009747,599.36,598.92,0.264]
[1741170155530,6.72009747,599.35,598.92,0.264]
[1741170155729,6.72009747,599.34,598.92,0.264]
[1741170155926,6.72009747,599.33,598.92,0.264]
[1741170156130,4.09169727,599.32,598.92,0.264]
[1741170156327,2.5845173,599.31,598.92,0.264]
[1741170156526,2.5845173,599.3,598.92,0.264]
[1741170156727,2.5845173,599.29,598.92,0.264]
[1741170156931,2.5845173,599.28,598.92,0.264]
[1741170157132,0.94176718,599.27,598.92,0.264]
[1741170157430,1.18270197,599.28,598.93,0.27955752]
[1741170157728,0.333667,599.4,598.93,0.27955752]
[1741170157929,2.58397228,599.39,598.93,0.27955752]
[1741170158132,2.58397228,599.38,598.93,0.27955752]
[1741170158328,2.58397228,599.37,598.93,0.27955752]
[1741170158532,2.58397228,599.36,598.92,0.264]
[1741170158734,4.09011314,599.35,598.92,0.264]
[1741170158934,2.58397228,599.34,598.92,0.264]
[1741170159133,2.58397228,599.33,598.92,0.264]
[1741170159334,3.76651487,599.32,598.92,0.264]
[1741170159528,2.58397228,599.31,598.92,0.264]
[1741170159733,2.58397228,599.3,598.92,0.264]
[1741170159930,2.58397228,599.29,598.92,0.264]
[1741170160128,2.58397228,599.28,598.92,0.264]
[1741170160432,0.94141171,599.27,598.92,0.264]
[1741170160632,2.1239543,599.26,598.92,0.264]
[1741170160835,0.94083159,599.25,598.92,0.264]
[1741170161035,1.18254259,599.26,598.92,0.264]
[1741170161238,0.9407465,599.25,598.92,0.264]
[1741170161536,1.18254259,599.26,598.92,0.264]
[1741170161729,1.18254259,599.24,598.92,0.264]
[1741170162336,0.333667,599.4,598.92,0.264]
[1741170162636,0.29065154,599.31,598.92,0.264]
[1741170162833,2.58155936,599.3,598.92,0.264]
[1741170163131,0.94054918,599.29,598.92,0.264]
[1741170163332,3.07192601,599.39,598.92,0.264]
[1741170163533,2.58177066,599.38,598.92,0.264]
[1741170163734,2.58177066,599.37,598.92,0.264]
[1741170163931,2.58177066,599.36,598.92,0.264]
[1741170164134,2.58177066,599.35,598.92,0.264]
[1741170164330,2.58177066,599.34,598.92,0.264]
[1741170164536,2.58177066,599.33,598.92,0.264]
[1741170164832,2.58177066,599.32,598.92,0.264]
[1741170165036,2.58177066,599.31,598.92,0.264]
[1741170165236,3.76328066,599.3,598.92,0.264]
[1741170165438,2.58177066,599.29,598.92,0.264]
[1741170165637,2.58177066,599.28,598.92,0.264]
[1741170165836,1.47215183,599.3,598.92,0.264]
[1741170165837,2.58197877,599.27,598.92,0.264]
[1741170166037,0.94062451,599.26,598.92,0.264]
[1741170166333,0.94062451,599.25,598.92,0.264]
[1741170166537,1.18151,599.27,598.92,0.264]
[1741170166737,2.58244548,599.26,598.92,0.264]
[1741170166938,0.94087949,599.25,598.92,0.264]
[1741170167141,1.18151,599.25,598.92,0.264]
[1741170167337,0.29064183,599.3,598.92,0.264]
[1741170167538,2.58251764,599.29,598.92,0.264]
[1741170167739,2.58262882,599.28,598.92,0.264]
[1741170167939,0.940902,599.27,598.47,0.29064183]
[1741170168142,0.940902,599.26,598.48,0.2795924]
[1741170168343,1.18203671,599.27,598.48,0.2795924]
[1741170168537,0.94109411,599.26,598.49,0.2795924]
[1741170168739,0.94109411,599.25,598.47,0.29059451]
[1741170168941,1.18203671,599.26,598.48,0.2795924]
[1741170169142,0.94101514,599.25,598.48,0.2795924]
[1741170169337,2.58261959,599.24,598.48,0.2795924]
[1741170169541,2.58261959,599.23,598.48,0.2795924]
[1741170169743,5.20899382,599.22,598.49,0.2795924]
[1741170169938,2.58261959,599.21,598.5,0.2795924]
[1741170170141,3.76419092,599.2,598.41,0.2795924]
[1741170170443,2.58261959,599.19,598.42,0.2795924]
[1741170170640,2.58261959,599.18,598.41,0.2795924]
[1741170170841,2.58261959,599.17,598.42,0.2795924]
[1741170171139,2.58261959,599.16,598.43,0.2795924]
[1741170171343,2.58261959,599.15,598.44,0.27964216]
[1741170171641,0.9409743,599.14,598.45,0.27964216]
[1741170171843,0.97847859,599.45,598.42,0.264]
[1741170171844,2.12254563,599.13,598.43,0.27964216]
[1741170172143,1.18157133,599.13,598.44,0.27964216]
[1741170172343,1.18157133,599.13,598.45,0.27964216]
[1741170172544,1.18157133,599.13,598.42,0.264]
[1741170172545,1.18157133,599.13,598.43,0.27964216]
[1741170172843,1.18157133,599.13,598.44,0.27964216]
[1741170173047,0.29057024,599.2,598.45,0.27963267]
[1741170173245,4.08631655,599.19,598.43,0.27963267]
[1741170173448,2.58154506,599.18,598.44,0.27963267]
[1741170173646,2.58154506,599.17,598.45,0.27963267]
[1741170173849,2.58154506,599.16,598.43,0.27963267]
[1741170174050,3.76292626,599.15,598.44,0.27963267]
[1741170174351,0.94056687,599.14,598.45,0.27963267]
[1741170174550,0.97847859,599.44,598.46,0.27963267]
[1741170174551,0.50068103,599.39,598.46,0.27963267]
[1741170174751,7.54776505,599.38,598.43,0.27963267]
[1741170174951,0.29057267,599.2,598.43,0.27963267]
[1741170175147,2.58207913,599.19,598.43,0.27963267]
[1741170175345,2.58207913,599.18,598.43,0.27963267]
[1741170175548,2.58207913,599.17,598.43,0.27963267]
[1741170175745,2.58207913,599.16,598.43,0.27963267]
[1741170175949,3.76374619,599.15,598.43,0.27963267]
[1741170176150,2.58207913,599.14,598.43,0.27963267]
[1741170176349,2.58207913,599.13,598.43,0.27963267]
[1741170176652,2.12242445,599.12,598.44,0.27964178]
[1741170176844,1.18166706,599.12,598.43,0.27964178]
[1741170177050,1.18166706,599.12,598.44,0.27964178]
[1741170177244,1.64275945,599.11,598.45,0.27964178]
[1741170177448,0.3336837,599.37,598.43,0.27964178]
[1741170177449,1.50654818,599.33,598.43,0.27964178]
[1741170177647,0.29058359,599.17,598.46,0.27964178]
[1741170177850,6.71923952,599.31,598.47,0.27964178]
[1741170178052,2.5843107,599.3,598.48,0.27964178]
[1741170178252,2.5843107,599.29,598.42,0.264]
[1741170178549,3.76707443,599.28,598.43,0.27965133]
[1741170178747,2.5843107,599.27,598.43,0.27965133]
[1741170179053,1.4733643,599.28,598.43,0.27965133]
[1741170179054,3.76707443,599.26,598.43,0.27965133]
[1741170179255,2.5843107,599.25,598.43,0.27965133]
[1741170179554,3.76707443,599.24,598.43,0.27965133]
[1741170179750,0.94157776,599.23,598.43,0.27965133]
[1741170180054,0.94264828,599.22,598.43,0.27965133]
[1741170180254,0.94264828,599.21,598.43,0.27965133]
[1741170180455,1.18276373,599.22,598.43,0.27965133]
[1741170180656,2.87847493,599.21,598.43,0.27965133]
[1741170180853,0.94289363,599.2,598.43,0.27965133]
[1741170181054,0.29057388,599.21,598.43,0.27965133]
[1741170181252,0.94283044,599.2,598.43,0.27965133]
[1741170181559,1.18276373,599.2,598.43,0.27965133]
[1741170181754,1.18276373,599.2,598.44,0.27966225]
[1741170181955,0.29057388,599.21,598.43,0.27966225]
[1741170182156,0.94305538,599.2,598.44,0.27966225]
[1741170182459,0.29057388,599.21,598.45,0.27966225]
[1741170182655,0.94300191,599.2,598.46,0.27966225]
[1741170182862,0.29057388,599.21,598.47,0.27966225]
[1741170183057,0.29057388,599.21,598.43,0.27966225]
[1741170183260,0.29057388,599.21,598.44,0.27966225]
[1741170183460,0.97958154,599.58,598.44,0.27966225]
[1741170183661,0.29056297,599.2,598.45,0.27966225]
[1741170183863,0.97958154,599.58,598.46,0.27966225]
[1741170184063,2.63299025,599.57,598.47,0.27966225]
[1741170184266,4.64254211,599.57,598.43,0.27966225]
[1741170184463,2.58917679,599.3,598.44,0.27966225]
[1741170184662,0.94335024,599.29,598.45,0.27966225]
[1741170184863,0.94335024,599.29,598.46,0.27966225]
[1741170185058,1.64617959,599.28,598.46,0.27966225]
[1741170185264,0.62424853,599.31,598.47,0.27966225]
[1741170185459,1.18560323,599.27,598.48,0.27966225]
[1741170185665,2.59063726,599.26,598.43,0.27966225]
[1741170185966,1.18560323,599.25,598.44,0.27966225]
[1741170186166,0.62424853,599.31,598.43,0.27966225]
[1741170186365,2.59126725,599.3,598.44,0.27966225]
[1741170186560,2.59126725,599.29,598.43,0.27966225]
[1741170186763,2.59126725,599.28,598.43,0.27966225]
[1741170186966,2.13004553,599.27,598.43,0.27966225]
[1741170187160,2.13004553,599.26,598.43,0.27966225]
[1741170187363,1.18595941,599.26,598.4,0.27966225]
[1741170187563,0.6242461,599.31,598.41,0.27966225]
[1741170187765,2.59242356,599.3,598.42,0.27966225]
[1741170187961,2.59242356,599.29,598.42,0.27966225]
[1741170188163,2.59242356,599.28,598.43,0.27966225]
[1741170188363,2.59278975,599.27,598.43,1.22818455]
[1741170188561,2.59278975,599.26,598.43,1.22818455]
[1741170188762,2.59278975,599.25,598.44,0.27959688]
[1741170188962,1.18637201,599.24,598.44,0.27959688]
[1741170189867,1.18637201,599.23,598.44,0.27959688]
[1741170190262,1.18637201,599.23,598.45,0.264]
[1741170190467,1.18637201,599.23,598.46,0.27959011]
[1741170190868,1.18637201,599.22,598.46,0.27959011]
[1741170191765,0.3337171,599.31,598.46,0.27959011]
[1741170191968,2.59548677,599.3,598.46,0.27959011]
[1741170192164,2.59548677,599.29,598.47,0.27957717]
[1741170192367,2.59548677,599.28,598.46,0.27957717]
[1741170192563,2.59548677,599.27,598.47,0.27957717]
[1741170192763,2.59548677,599.26,598.46,0.27957717]
[1741170192967,0.94562318,599.25,598.47,0.27957717]
[1741170193168,1.18782879,599.27,598.45,0.264]
[1741170193169,2.59809909,599.24,598.46,0.27957717]
[1741170193370,1.18782879,599.24,598.47,0.27957717]